[Event "Titled Tuesday Blitz April 05 Late 2022"]
[White "Naroditsky, Daniel"]
[Black "Dreev, Aleksey"]
[WhiteFideId "2026961"]
[BlackFideId "4100107"]
[WhiteElo "2608"]
[BlackElo "2625"]
[Result "1/2-1/2"]
[Round "10"]
[TimeControl "180+1"]
[Date "2022.04.05"]
[WhiteClock "0:00:03"]
[BlackClock "0:00:08"]

1. e4 {[%clk 0:02:59]}  c5 {[%clk 0:02:59]} 2. Nf3 {[%clk 0:02:58]}  e6 {[%clk 0:03:00]} 3. d4 {[%clk 0:02:57]}  cxd4 {[%clk 0:03:00]} 4. Nxd4 {[%clk 0:02:58]}  Nf6 {[%clk 0:03:01]} 5. Nc3 {[%clk 0:02:58]}  Nc6 {[%clk 0:03:01]} 6. g3 {[%clk 0:02:56]}  Bb4 {[%clk 0:02:58]} 7. Bg2 {[%clk 0:02:55]}  d6 {[%clk 0:02:54]} 8. O-O {[%clk 0:02:48]}  O-O {[%clk 0:02:54]} 9. Nb3 {[%clk 0:02:42]}  Bxc3 {[%clk 0:02:34]} 10. bxc3 {[%clk 0:02:42]}  Qc7 {[%clk 0:02:35]} 11. g4 {[%clk 0:02:13]}  e5 {[%clk 0:02:27]} 12. g5 {[%clk 0:02:11]}  Ne8 {[%clk 0:02:22]} 13. f4 {[%clk 0:01:50]}  exf4 {[%clk 0:02:20]} 14. Bxf4 {[%clk 0:01:51]}  Ne5 {[%clk 0:02:10]} 15. Qe1 {[%clk 0:01:49]}  Be6 {[%clk 0:01:44]} 16. Nd4 {[%clk 0:01:49]}  Bc4 {[%clk 0:01:41]} 17. Rf2 {[%clk 0:01:48]}  g6 {[%clk 0:01:40]} 18. Qd2 {[%clk 0:01:38]}  Ng7 {[%clk 0:01:40]} 19. Bh3 {[%clk 0:01:23]}  Rae8 {[%clk 0:01:37]} 20. a4 {[%clk 0:01:18]}  a6 {[%clk 0:01:37]} 21. Re1 {[%clk 0:01:18]}  Ne6 {[%clk 0:01:17]} 22. Bg3 {[%clk 0:01:12]}  Qd8 {[%clk 0:01:11]} 23. Bh4 {[%clk 0:00:52]}  h6 {[%clk 0:01:11]} 24. Kh1 {[%clk 0:00:42]}  Nxg5 {[%clk 0:01:08]} 25. Rg1 {[%clk 0:00:42]}  Nxe4 {[%clk 0:01:00]} 26. Bxd8 {[%clk 0:00:32]}  Nxd2 {[%clk 0:00:51]} 27. Bc7 {[%clk 0:00:27]}  Ne4 {[%clk 0:00:46]} 28. Rf4 {[%clk 0:00:27]}  d5 {[%clk 0:00:39]} 29. Nf5 {[%clk 0:00:18]}  Kh7 {[%clk 0:00:30]} 30. Nd6 {[%clk 0:00:19]}  Re7 {[%clk 0:00:21]} 31. Nxe4 {[%clk 0:00:15]}  Rxc7 {[%clk 0:00:21]} 32. Nf6+ {[%clk 0:00:16]}  Kg7 {[%clk 0:00:19]} 33. Re1 {[%clk 0:00:11]}  Nc6 {[%clk 0:00:17]} 34. Bg2 {[%clk 0:00:03]}  Re7 {[%clk 0:00:17]} 35. Rg1 {[%clk 0:00:03]}  Rd8 {[%clk 0:00:16]} 36. Bf3 {[%clk 0:00:02]}  Rd6 {[%clk 0:00:16]} 37. Nh5+ {[%clk 0:00:02]}  Kh7 {[%clk 0:00:16]} 38. Nf6+ {[%clk 0:00:02]}  Kh8 {[%clk 0:00:16]} 39. Ng4 {[%clk 0:00:03]}  h5 {[%clk 0:00:15]} 40. Nf2 {[%clk 0:00:04]}  Ne5 {[%clk 0:00:13]} 41. Bg2 {[%clk 0:00:03]}  Kg7 {[%clk 0:00:14]} 42. Rd1 {[%clk 0:00:03]}  Rf6 {[%clk 0:00:14]} 43. Rxf6 {[%clk 0:00:02]}  Kxf6 {[%clk 0:00:15]} 44. Bxd5 {[%clk 0:00:03]}  Rd7 {[%clk 0:00:11]} 45. Be4 {[%clk 0:00:01]}  Rxd1+ {[%clk 0:00:10]} 46. Nxd1 {[%clk 0:00:02]}  b6 {[%clk 0:00:10]} 47. Ne3 {[%clk 0:00:03]}  a5 {[%clk 0:00:10]} 48. Kg2 {[%clk 0:00:03]}  Ke6 {[%clk 0:00:10]} 49. Kg3 {[%clk 0:00:02]}  f5 {[%clk 0:00:10]} 50. Bb7 {[%clk 0:00:03]}  Kf6 {[%clk 0:00:09]} 51. h4 {[%clk 0:00:03]}  Be6 {[%clk 0:00:08]} 52. Kf4 {[%clk 0:00:03]}  Nf7 {[%clk 0:00:08]} 53. Bd5 {[%clk 0:00:03]}  Nd6 {[%clk 0:00:07]} 54. Bg2 {[%clk 0:00:02]}  Nf7 {[%clk 0:00:07]} 55. Bd5 {[%clk 0:00:03]}  g5+ {[%clk 0:00:08]} 56. hxg5+ {[%clk 0:00:04]}  Nxg5 {[%clk 0:00:08]} 57. Bg2 {[%clk 0:00:03]}  Nf7 {[%clk 0:00:07]} 58. c4 {[%clk 0:00:03]}  Nd6 {[%clk 0:00:07]} 59. Bd5 {[%clk 0:00:03]}  Bd7 {[%clk 0:00:07]} 60. Bf3 {[%clk 0:00:01]}  h4 {[%clk 0:00:07]} 61. Nd5+ {[%clk 0:00:02]}  Ke6 {[%clk 0:00:05]} 62. Nxb6 {[%clk 0:00:03]}  h3 {[%clk 0:00:05]} 63. c5 {[%clk 0:00:02]}  Nf7 {[%clk 0:00:05]} 64. c6 {[%clk 0:00:02]}  Be8 {[%clk 0:00:04]} 65. c7 {[%clk 0:00:02]}  Nd6 {[%clk 0:00:04]} 66. c8=Q+ {[%clk 0:00:02]}  Nxc8 {[%clk 0:00:05]} 67. Nxc8 {[%clk 0:00:03]}  Bxa4 {[%clk 0:00:05]} 68. Nb6 {[%clk 0:00:03]}  Bxc2 {[%clk 0:00:05]} 69. Kg3 {[%clk 0:00:04]}  a4 {[%clk 0:00:05]} 70. Kxh3 {[%clk 0:00:04]}  a3 {[%clk 0:00:06]} 71. Bd5+ {[%clk 0:00:05]}  Kd6 {[%clk 0:00:06]} 72. Ba2 {[%clk 0:00:06]}  Kc5 {[%clk 0:00:07]} 73. Nd5 {[%clk 0:00:05]}  Kd4 {[%clk 0:00:07]} 74. Kg3 {[%clk 0:00:05]}  Be4 {[%clk 0:00:06]} 75. Nb6 {[%clk 0:00:05]}  Kc3 {[%clk 0:00:07]} 76. Na4+ {[%clk 0:00:03]}  Kb4 {[%clk 0:00:07]} 77. Nb6 {[%clk 0:00:03]}  Kc3 {[%clk 0:00:06]} 78. Kf4 {[%clk 0:00:02]}  Kb2 {[%clk 0:00:07]} 79. Be6 {[%clk 0:00:03]}  Bc2 {[%clk 0:00:06]} 80. Nc4+ {[%clk 0:00:03]}  Ka2 {[%clk 0:00:07]} 81. Nd2+ {[%clk 0:00:01]}  Kb2 {[%clk 0:00:07]} 82. Nc4+ {[%clk 0:00:02]}  Ka2 {[%clk 0:00:07]} 83. Nxa3+ {[%clk 0:00:02]}  Kxa3 {[%clk 0:00:08]} 84. Bxf5 {[%clk 0:00:03]} 1/2-1/2


[Site "https://www.chess.com"]

[Event "Titled Tuesday Blitz April 05 Late 2022"]
[White "Nazaretyan, Tigran"]
[Black "Bachmann, Axel"]
[WhiteFideId "24162345"]
[BlackFideId "3700488"]
[WhiteElo "2611"]
[BlackElo "2517"]
[Result "1-0"]
[Round "10"]
[TimeControl "180+1"]
[Date "2022.04.06"]
[WhiteClock "0:00:33"]
[BlackClock "0:00:08"]

1. d4 {[%clk 0:03:00]}  Nf6 {[%clk 0:02:56]} 2. c4 {[%clk 0:03:00]}  g6 {[%clk 0:02:55]} 3. Nf3 {[%clk 0:03:00]}  Bg7 {[%clk 0:02:55]} 4. Nc3 {[%clk 0:03:01]}  O-O {[%clk 0:02:55]} 5. e4 {[%clk 0:03:01]}  d6 {[%clk 0:02:56]} 6. Be2 {[%clk 0:03:01]}  Na6 {[%clk 0:02:56]} 7. O-O {[%clk 0:03:01]}  e5 {[%clk 0:02:57]} 8. Be3 {[%clk 0:03:02]}  Qe7 {[%clk 0:02:56]} 9. Qc2 {[%clk 0:03:00]}  Ng4 {[%clk 0:02:33]} 10. Bg5 {[%clk 0:02:58]}  f6 {[%clk 0:02:31]} 11. Bh4 {[%clk 0:02:58]}  Nh6 {[%clk 0:02:24]} 12. c5 {[%clk 0:02:47]}  exd4 {[%clk 0:02:18]} 13. Bxa6 {[%clk 0:02:42]}  dxc3 {[%clk 0:02:13]} 14. cxd6 {[%clk 0:02:41]}  Qxd6 {[%clk 0:02:07]} 15. Bc4+ {[%clk 0:02:40]}  Nf7 {[%clk 0:02:01]} 16. Rad1 {[%clk 0:02:25]}  Qe7 {[%clk 0:01:56]} 17. e5 {[%clk 0:02:21]}  g5 {[%clk 0:01:54]} 18. exf6 {[%clk 0:02:19]}  Bxf6 {[%clk 0:01:55]} 19. Rfe1 {[%clk 0:02:17]}  Qc5 {[%clk 0:01:46]} 20. Bxg5 {[%clk 0:01:25]}  Bxg5 {[%clk 0:01:44]} 21. Qxc3 {[%clk 0:01:25]}  Be7 {[%clk 0:01:06]} 22. Rd5 {[%clk 0:01:21]}  Bf6 {[%clk 0:00:16]} 23. Rxc5 {[%clk 0:00:49]}  Bxc3 {[%clk 0:00:16]} 24. bxc3 {[%clk 0:00:49]}  c6 {[%clk 0:00:15]} 25. Ng5 {[%clk 0:00:48]}  Bd7 {[%clk 0:00:10]} 26. Re7 {[%clk 0:00:38]}  Rae8 {[%clk 0:00:07]} 27. Rce5 {[%clk 0:00:34]}  Rxe7 {[%clk 0:00:02]} 28. Rxe7 {[%clk 0:00:33]}  b5 {[%clk 0:00:01]} 29. Bxf7+ {[%clk 0:00:32]}  Kg7 {[%clk 0:00:01]} 30. Rxd7 {[%clk 0:00:32]}  Kf6 {[%clk 0:00:01]} 31. Nxh7+ {[%clk 0:00:32]}  Ke5 {[%clk 0:00:01]} 32. Nxf8 {[%clk 0:00:32]}  c5 {[%clk 0:00:02]} 33. Rxa7 {[%clk 0:00:32]}  b4 {[%clk 0:00:02]} 34. cxb4 {[%clk 0:00:32]}  cxb4 {[%clk 0:00:03]} 35. h4 {[%clk 0:00:32]}  Kd4 {[%clk 0:00:03]} 36. h5 {[%clk 0:00:33]}  Kc3 {[%clk 0:00:04]} 37. h6 {[%clk 0:00:33]}  b3 {[%clk 0:00:05]} 38. axb3 {[%clk 0:00:32]}  Kb2 {[%clk 0:00:06]} 39. h7 {[%clk 0:00:32]}  Kb1 {[%clk 0:00:07]} 40. h8=Q {[%clk 0:00:32]}  Kc1 {[%clk 0:00:08]} 41. Qc3+ {[%clk 0:00:32]}  Kd1 {[%clk 0:00:08]} 42. Bh5# {[%clk 0:00:33]} 1-0


[Site "https://www.chess.com"]

[Event "Titled Tuesday Blitz April 05 Late 2022"]
[White "Prohorov, Olexandr"]
[Black "Danilov, Vladimir"]
[WhiteFideId "14105578"]
[BlackFideId "1203398"]
[WhiteElo "2435"]
[BlackElo "2518"]
[Result "0-1"]
[Round "10"]
[TimeControl "180+1"]
[Date "2022.04.06"]
[WhiteClock "0:00:01"]
[BlackClock "0:00:22"]

1. e4 {[%clk 0:03:00]}  e5 {[%clk 0:02:59]} 2. Nf3 {[%clk 0:03:00]}  Nc6 {[%clk 0:03:00]} 3. Bb5 {[%clk 0:02:58]}  a6 {[%clk 0:03:00]} 4. Ba4 {[%clk 0:02:58]}  d6 {[%clk 0:03:01]} 5. d4 {[%clk 0:02:58]}  b5 {[%clk 0:03:01]} 6. Bb3 {[%clk 0:02:56]}  Nxd4 {[%clk 0:03:01]} 7. Nxd4 {[%clk 0:02:38]}  exd4 {[%clk 0:03:02]} 8. a4 {[%clk 0:02:37]}  Bb7 {[%clk 0:02:57]} 9. axb5 {[%clk 0:02:31]}  axb5 {[%clk 0:02:57]} 10. Rxa8 {[%clk 0:02:31]}  Bxa8 {[%clk 0:02:53]} 11. Na3 {[%clk 0:02:25]}  b4 {[%clk 0:02:47]} 12. Ba4+ {[%clk 0:02:15]}  Ke7 {[%clk 0:02:46]} 13. Nc4 {[%clk 0:02:08]}  c5 {[%clk 0:02:41]} 14. O-O {[%clk 0:02:00]}  Nf6 {[%clk 0:02:27]} 15. Bf4 {[%clk 0:01:56]}  Nxe4 {[%clk 0:02:22]} 16. Re1 {[%clk 0:01:57]}  d5 {[%clk 0:02:22]} 17. Nd6 {[%clk 0:01:35]}  h5 {[%clk 0:01:45]} 18. f3 {[%clk 0:01:27]}  Ke6 {[%clk 0:01:42]} 19. fxe4 {[%clk 0:01:15]}  Bxd6 {[%clk 0:01:40]} 20. exd5+ {[%clk 0:01:09]}  Kf6 {[%clk 0:01:40]} 21. Qf3 {[%clk 0:01:07]}  Bxf4 {[%clk 0:01:38]} 22. Qxf4+ {[%clk 0:01:07]}  Kg6 {[%clk 0:01:38]} 23. c4 {[%clk 0:00:55]}  Qg5 {[%clk 0:01:28]} 24. Bc2+ {[%clk 0:00:49]}  Kh6 {[%clk 0:01:26]} 25. Qxf7 {[%clk 0:00:49]}  g6 {[%clk 0:01:04]} 26. Rf1 {[%clk 0:00:34]}  b3 {[%clk 0:00:52]} 27. Bb1 {[%clk 0:00:29]}  Rd8 {[%clk 0:00:46]} 28. h4 {[%clk 0:00:17]}  Qe3+ {[%clk 0:00:37]} 29. Rf2 {[%clk 0:00:17]}  d3 {[%clk 0:00:37]} 30. Qf6 {[%clk 0:00:07]}  Re8 {[%clk 0:00:32]} 31. Kh2 {[%clk 0:00:06]}  Bb7 {[%clk 0:00:25]} 32. Qf7 {[%clk 0:00:01]}  Bc8 {[%clk 0:00:22]} 0-1


[Site "https://www.chess.com"]

[Event "Titled Tuesday Blitz April 05 Late 2022"]
[White "Roman, Rodrigo"]
[Black "Zhou, Qiyu"]
[WhiteFideId "3701220"]
[BlackFideId "505161"]
[WhiteElo "2001"]
[BlackElo "1925"]
[Result "1-0"]
[Round "10"]
[TimeControl "180+1"]
[Date "2022.04.06"]
[WhiteClock "0:00:29"]
[BlackClock "0:00:02"]

1. e4 {[%clk 0:03:00]}  c5 {[%clk 0:02:58]} 2. Nc3 {[%clk 0:03:00]}  d6 {[%clk 0:02:58]} 3. f4 {[%clk 0:03:00]}  Nc6 {[%clk 0:02:56]} 4. Nf3 {[%clk 0:03:00]}  g6 {[%clk 0:02:51]} 5. Bc4 {[%clk 0:03:00]}  e6 {[%clk 0:02:49]} 6. d4 {[%clk 0:02:56]}  cxd4 {[%clk 0:02:48]} 7. Nxd4 {[%clk 0:02:57]}  Bg7 {[%clk 0:02:48]} 8. Nxc6 {[%clk 0:02:56]}  bxc6 {[%clk 0:02:48]} 9. Bb3 {[%clk 0:02:52]}  Ne7 {[%clk 0:02:42]} 10. Be3 {[%clk 0:02:48]}  O-O {[%clk 0:02:40]} 11. O-O {[%clk 0:02:47]}  d5 {[%clk 0:02:39]} 12. e5 {[%clk 0:02:45]}  Qa5 {[%clk 0:02:34]} 13. Na4 {[%clk 0:02:45]}  Ba6 {[%clk 0:02:32]} 14. Re1 {[%clk 0:02:36]}  Rfd8 {[%clk 0:02:17]} 15. Bc5 {[%clk 0:02:24]}  Nc8 {[%clk 0:02:03]} 16. c3 {[%clk 0:02:21]}  Bb5 {[%clk 0:01:54]} 17. Qd4 {[%clk 0:02:15]}  Rb8 {[%clk 0:01:43]} 18. Bb4 {[%clk 0:02:10]}  Qc7 {[%clk 0:01:39]} 19. Nc5 {[%clk 0:02:08]}  a5 {[%clk 0:01:35]} 20. Ba3 {[%clk 0:02:08]}  Nb6 {[%clk 0:01:32]} 21. Rad1 {[%clk 0:02:05]}  Nd7 {[%clk 0:01:25]} 22. Nxd7 {[%clk 0:02:01]}  Qxd7 {[%clk 0:01:26]} 23. c4 {[%clk 0:01:46]}  Ba6 {[%clk 0:01:20]} 24. Qc5 {[%clk 0:01:42]}  Qb7 {[%clk 0:00:50]} 25. Qxa5 {[%clk 0:01:35]}  d4 {[%clk 0:00:43]} 26. Bd6 {[%clk 0:01:30]}  Ra8 {[%clk 0:00:40]} 27. Qc5 {[%clk 0:01:29]}  Bh6 {[%clk 0:00:38]} 28. Rxd4 {[%clk 0:01:27]}  Rd7 {[%clk 0:00:34]} 29. Re2 {[%clk 0:01:24]}  Rad8 {[%clk 0:00:33]} 30. Ba4 {[%clk 0:01:23]}  Rc8 {[%clk 0:00:31]} 31. b4 {[%clk 0:01:20]}  Bf8 {[%clk 0:00:28]} 32. Red2 {[%clk 0:01:15]}  Bh6 {[%clk 0:00:15]} 33. Bd1 {[%clk 0:01:06]}  Qa8 {[%clk 0:00:11]} 34. Bf3 {[%clk 0:01:06]}  Bb7 {[%clk 0:00:11]} 35. g3 {[%clk 0:00:37]}  Qa3 {[%clk 0:00:11]} 36. R4d3 {[%clk 0:00:35]}  Qc1+ {[%clk 0:00:11]} 37. Kg2 {[%clk 0:00:35]}  Rcd8 {[%clk 0:00:08]} 38. a4 {[%clk 0:00:34]}  Qa1 {[%clk 0:00:07]} 39. a5 {[%clk 0:00:33]}  Qa4 {[%clk 0:00:06]} 40. Qb6 {[%clk 0:00:33]}  Bf8 {[%clk 0:00:05]} 41. c5 {[%clk 0:00:29]}  Qa3 {[%clk 0:00:02]} 42. Rxa3 {[%clk 0:00:29]} 1-0


[Site "https://www.chess.com"]

[Event "Titled Tuesday Blitz April 05 Late 2022"]
[White "Rosen, Eric"]
[Black "Karttunen, Mika"]
[WhiteFideId "2032562"]
[BlackFideId "502081"]
[WhiteElo "2362"]
[BlackElo "2343"]
[Result "1-0"]
[Round "10"]
[TimeControl "180+1"]
[Date "2022.04.05"]
[WhiteClock "0:00:44"]
[BlackClock "0:00:05"]

1. d4 {[%clk 0:02:59]}  Nf6 {[%clk 0:02:58]} 2. Bf4 {[%clk 0:02:59]}  d6 {[%clk 0:02:57]} 3. Nc3 {[%clk 0:02:57]}  Nbd7 {[%clk 0:02:55]} 4. Nf3 {[%clk 0:02:57]}  Nh5 {[%clk 0:02:50]} 5. Bd2 {[%clk 0:02:39]}  e5 {[%clk 0:02:38]} 6. e4 {[%clk 0:02:38]}  Nhf6 {[%clk 0:02:27]} 7. Bc4 {[%clk 0:02:37]}  Be7 {[%clk 0:02:01]} 8. Bxf7+ {[%clk 0:02:18]}  Kxf7 {[%clk 0:02:02]} 9. Ng5+ {[%clk 0:02:19]}  Kg8 {[%clk 0:02:02]} 10. Ne6 {[%clk 0:02:19]}  Qe8 {[%clk 0:02:02]} 11. Nxc7 {[%clk 0:02:15]}  Qg6 {[%clk 0:02:02]} 12. Nxa8 {[%clk 0:02:01]}  Qxg2 {[%clk 0:02:02]} 13. Rf1 {[%clk 0:01:55]}  exd4 {[%clk 0:02:02]} 14. Qe2 {[%clk 0:01:46]}  d3 {[%clk 0:01:12]} 15. cxd3 {[%clk 0:01:31]}  Ng4 {[%clk 0:00:53]} 16. O-O-O {[%clk 0:01:29]}  Nde5 {[%clk 0:00:40]} 17. d4 {[%clk 0:01:26]}  Be6 {[%clk 0:00:10]} 18. dxe5 {[%clk 0:01:25]}  Nxe5 {[%clk 0:00:11]} 19. Qb5 {[%clk 0:01:05]}  Kf7 {[%clk 0:00:11]} 20. Qxb7 {[%clk 0:01:00]}  Nd3+ {[%clk 0:00:10]} 21. Kb1 {[%clk 0:01:00]}  Nc5 {[%clk 0:00:10]} 22. Qc6 {[%clk 0:00:57]}  Rc8 {[%clk 0:00:09]} 23. Nc7 {[%clk 0:00:54]}  Qf3 {[%clk 0:00:09]} 24. Be3 {[%clk 0:00:47]}  Nd7 {[%clk 0:00:06]} 25. Rg1 {[%clk 0:00:43]}  Ne5 {[%clk 0:00:06]} 26. Qb7 {[%clk 0:00:44]}  g6 {[%clk 0:00:04]} 27. Nxe6 {[%clk 0:00:44]}  Kxe6 {[%clk 0:00:05]} 28. Qxc8+ {[%clk 0:00:44]} 1-0


[Site "https://www.chess.com"]

[Event "Titled Tuesday Blitz April 05 Late 2022"]
[White "Rottenwohrer Suarez, Juan"]
[Black "Tsukerman, Julia"]
[WhiteFideId "32068182"]
[BlackFideId "2621649"]
[WhiteElo "2399"]
[BlackElo "2185"]
[Result "1-0"]
[Round "10"]
[TimeControl "180+1"]
[Date "2022.04.06"]
[WhiteClock "0:00:53"]
[BlackClock "0:01:28"]

1. d4 {[%clk 0:03:00]}  d5 {[%clk 0:02:59]} 2. Nf3 {[%clk 0:02:54]}  Nf6 {[%clk 0:02:57]} 3. g3 {[%clk 0:02:55]}  e6 {[%clk 0:02:57]} 4. Bg2 {[%clk 0:02:55]}  Be7 {[%clk 0:02:58]} 5. O-O {[%clk 0:02:56]}  O-O {[%clk 0:02:58]} 6. c4 {[%clk 0:02:56]}  dxc4 {[%clk 0:02:59]} 7. Qc2 {[%clk 0:02:31]}  a6 {[%clk 0:02:56]} 8. a4 {[%clk 0:02:25]}  Bd7 {[%clk 0:02:51]} 9. Qxc4 {[%clk 0:02:19]}  Bc6 {[%clk 0:02:44]} 10. Bg5 {[%clk 0:02:14]}  h6 {[%clk 0:02:41]} 11. Bxf6 {[%clk 0:02:08]}  Bxf6 {[%clk 0:02:40]} 12. Rd1 {[%clk 0:02:08]}  Bd5 {[%clk 0:02:35]} 13. Qd3 {[%clk 0:01:51]}  b6 {[%clk 0:02:22]} 14. e4 {[%clk 0:01:50]}  Bb7 {[%clk 0:02:22]} 15. Nc3 {[%clk 0:01:50]}  Nd7 {[%clk 0:02:21]} 16. a5 {[%clk 0:01:45]}  b5 {[%clk 0:02:17]} 17. b4 {[%clk 0:01:44]}  Rc8 {[%clk 0:02:12]} 18. h4 {[%clk 0:01:32]}  Be7 {[%clk 0:02:09]} 19. Rab1 {[%clk 0:01:29]}  Re8 {[%clk 0:02:00]} 20. e5 {[%clk 0:01:18]}  Nb8 {[%clk 0:01:55]} 21. Ng5 {[%clk 0:00:54]}  hxg5 {[%clk 0:01:28]} 22. Bxb7 {[%clk 0:00:53]} 1-0


[Site "https://www.chess.com"]

[Event "Titled Tuesday Blitz April 05 Late 2022"]
[White "Rudzinska, Michalina"]
[Black "Burke, Paul"]
[WhiteFideId "1172883"]
[BlackFideId "2605767"]
[WhiteElo "1904"]
[BlackElo "1893"]
[Result "1-0"]
[Round "10"]
[TimeControl "180+1"]
[Date "2022.04.06"]
[WhiteClock "0:02:07"]
[BlackClock "0:00:08"]

1. e4 {[%clk 0:03:00]}  e5 {[%clk 0:00:49]} 2. Nf3 {[%clk 0:02:56]}  Nc6 {[%clk 0:00:49]} 3. Nc3 {[%clk 0:02:56]}  Be7 {[%clk 0:00:49]} 4. Bb5 {[%clk 0:02:57]}  d6 {[%clk 0:00:48]} 5. d4 {[%clk 0:02:57]}  exd4 {[%clk 0:00:48]} 6. Nxd4 {[%clk 0:02:58]}  Bd7 {[%clk 0:00:48]} 7. O-O {[%clk 0:02:58]}  Nf6 {[%clk 0:00:48]} 8. Re1 {[%clk 0:02:58]}  O-O {[%clk 0:00:48]} 9. Bf4 {[%clk 0:02:54]}  a6 {[%clk 0:00:48]} 10. Bxc6 {[%clk 0:02:50]}  Bxc6 {[%clk 0:00:46]} 11. Nf5 {[%clk 0:02:50]}  Qd7 {[%clk 0:00:38]} 12. Bg5 {[%clk 0:02:35]}  h6 {[%clk 0:00:27]} 13. Bh4 {[%clk 0:02:27]}  Rae8 {[%clk 0:00:23]} 14. Qf3 {[%clk 0:02:21]}  Kh7 {[%clk 0:00:16]} 15. Nxe7 {[%clk 0:02:16]}  Qxe7 {[%clk 0:00:13]} 16. h3 {[%clk 0:02:14]}  Qe6 {[%clk 0:00:12]} 17. Bxf6 {[%clk 0:02:11]}  Qxf6 {[%clk 0:00:11]} 18. Qxf6 {[%clk 0:02:11]}  gxf6 {[%clk 0:00:11]} 19. f3 {[%clk 0:02:12]}  Re7 {[%clk 0:00:11]} 20. Kf2 {[%clk 0:02:12]}  Rfe8 {[%clk 0:00:11]} 21. Red1 {[%clk 0:02:10]}  Kg6 {[%clk 0:00:11]} 22. Rd2 {[%clk 0:02:08]}  f5 {[%clk 0:00:11]} 23. exf5+ {[%clk 0:02:07]}  Kxf5 {[%clk 0:00:11]} 24. Ne2 {[%clk 0:02:07]}  b5 {[%clk 0:00:08]} 25. Nd4+ {[%clk 0:02:07]} 1-0


[Site "https://www.chess.com"]

[Event "Titled Tuesday Blitz April 05 Late 2022"]
[White "Sapunov, Evgeny"]
[Black "Romanchuk, Viktor"]
[WhiteFideId "4126661"]
[BlackFideId "14109271"]
[WhiteElo "2470"]
[BlackElo "2242"]
[Result "1-0"]
[Round "10"]
[TimeControl "180+1"]
[Date "2022.04.05"]
[WhiteClock "0:00:38"]
[BlackClock "0:00:00"]

1. c4 {[%clk 0:02:57]}  c6 {[%clk 0:02:59]} 2. Nf3 {[%clk 0:02:57]}  d5 {[%clk 0:02:59]} 3. b3 {[%clk 0:02:58]}  Bf5 {[%clk 0:02:58]} 4. Bb2 {[%clk 0:02:58]}  e6 {[%clk 0:02:58]} 5. g3 {[%clk 0:02:59]}  Nd7 {[%clk 0:02:58]} 6. Bg2 {[%clk 0:02:58]}  Ngf6 {[%clk 0:02:59]} 7. O-O {[%clk 0:02:59]}  h6 {[%clk 0:03:00]} 8. d3 {[%clk 0:02:59]}  Bc5 {[%clk 0:02:59]} 9. Nbd2 {[%clk 0:02:57]}  O-O {[%clk 0:02:58]} 10. a3 {[%clk 0:02:57]}  a5 {[%clk 0:02:57]} 11. Bc3 {[%clk 0:02:57]}  Qe7 {[%clk 0:02:45]} 12. Qc1 {[%clk 0:02:56]}  Rfe8 {[%clk 0:02:41]} 13. Qb2 {[%clk 0:02:55]}  e5 {[%clk 0:02:41]} 14. b4 {[%clk 0:02:56]}  axb4 {[%clk 0:02:40]} 15. axb4 {[%clk 0:02:56]}  Bd6 {[%clk 0:02:36]} 16. c5 {[%clk 0:02:55]}  Bc7 {[%clk 0:02:36]} 17. Nb3 {[%clk 0:02:49]}  d4 {[%clk 0:02:25]} 18. Bd2 {[%clk 0:02:46]}  Nd5 {[%clk 0:02:19]} 19. Rxa8 {[%clk 0:02:40]}  Rxa8 {[%clk 0:02:18]} 20. Ra1 {[%clk 0:02:41]}  Qd8 {[%clk 0:02:14]} 21. Ra3 {[%clk 0:02:34]}  Be6 {[%clk 0:02:02]} 22. Qa1 {[%clk 0:02:32]}  Rxa3 {[%clk 0:02:01]} 23. Qxa3 {[%clk 0:02:32]}  b6 {[%clk 0:01:50]} 24. cxb6 {[%clk 0:02:30]}  Bxb6 {[%clk 0:01:51]} 25. Ne1 {[%clk 0:02:18]}  Qc8 {[%clk 0:01:45]} 26. Nc2 {[%clk 0:02:16]}  c5 {[%clk 0:01:31]} 27. Nxc5 {[%clk 0:02:03]}  Nxc5 {[%clk 0:01:31]} 28. bxc5 {[%clk 0:02:04]}  Bxc5 {[%clk 0:01:31]} 29. Qb2 {[%clk 0:02:04]}  Be7 {[%clk 0:01:24]} 30. Bf3 {[%clk 0:01:59]}  Bg5 {[%clk 0:01:19]} 31. Be1 {[%clk 0:01:52]}  g6 {[%clk 0:01:12]} 32. h4 {[%clk 0:01:51]}  Be7 {[%clk 0:01:09]} 33. Bd2 {[%clk 0:01:51]}  Kg7 {[%clk 0:01:10]} 34. Nxd4 {[%clk 0:01:39]}  exd4 {[%clk 0:01:09]} 35. Bxd5 {[%clk 0:01:39]}  Bf6 {[%clk 0:00:50]} 36. Bf3 {[%clk 0:01:30]}  h5 {[%clk 0:00:50]} 37. Bf4 {[%clk 0:01:25]}  Qd7 {[%clk 0:00:43]} 38. Qb8 {[%clk 0:01:24]}  Kh7 {[%clk 0:00:35]} 39. Be5 {[%clk 0:01:22]}  Bxe5 {[%clk 0:00:30]} 40. Qxe5 {[%clk 0:01:22]}  Qa4 {[%clk 0:00:28]} 41. Kg2 {[%clk 0:01:18]}  Qb4 {[%clk 0:00:28]} 42. Be4 {[%clk 0:01:16]}  Qb6 {[%clk 0:00:26]} 43. Qxh5+ {[%clk 0:01:15]}  Kg8 {[%clk 0:00:25]} 44. Qe5 {[%clk 0:01:15]}  Qd8 {[%clk 0:00:23]} 45. h5 {[%clk 0:01:14]}  gxh5 {[%clk 0:00:22]} 46. Qxh5 {[%clk 0:01:13]}  Qf6 {[%clk 0:00:22]} 47. Bf3 {[%clk 0:01:07]}  Kf8 {[%clk 0:00:21]} 48. Qh4 {[%clk 0:01:07]}  Kg7 {[%clk 0:00:19]} 49. Qxf6+ {[%clk 0:01:01]}  Kxf6 {[%clk 0:00:20]} 50. Be4 {[%clk 0:01:01]}  Ke5 {[%clk 0:00:20]} 51. e3 {[%clk 0:00:58]}  f5 {[%clk 0:00:18]} 52. Bb7 {[%clk 0:00:56]}  Bd7 {[%clk 0:00:15]} 53. f4+ {[%clk 0:00:54]}  Kd6 {[%clk 0:00:15]} 54. e4 {[%clk 0:00:54]}  fxe4 {[%clk 0:00:12]} 55. dxe4 {[%clk 0:00:49]}  d3 {[%clk 0:00:13]} 56. Kf2 {[%clk 0:00:47]}  Bb5 {[%clk 0:00:06]} 57. Ke3 {[%clk 0:00:47]}  Kc5 {[%clk 0:00:07]} 58. g4 {[%clk 0:00:44]}  Kc4 {[%clk 0:00:07]} 59. Kd2 {[%clk 0:00:42]}  Kd4 {[%clk 0:00:07]} 60. g5 {[%clk 0:00:42]}  Be8 {[%clk 0:00:00]} 61. Bd5 {[%clk 0:00:38]} 1-0


[Site "https://www.chess.com"]